fUST/lending_fUST_20240921
["ID","MTS","AMOUNT","RATE_DAILY","PERIOD"]
[338803612,1726918256002,-151.0,0.00014508,2]
[338803613,1726918256012,-175.9905,0.00014508,2]
[338803614,1726918256021,-175.9905,0.00014508,2]
[338803615,1726918256031,-500.0,0.00014508,2]
[338803616,1726918256040,-500.0,0.00014508,2]
[338803617,1726918256049,-500.0,0.00014508,2]
[338803618,1726918256059,-501.77,0.00014508,2]
[338803619,1726918256068,-151.0,0.00014508,2]
[338803620,1726918256077,-151.0,0.00014508,2]
[338803621,1726918256087,-151.0,0.00014508,2]
[338803622,1726918256096,-151.0,0.00014508,2]
[338803623,1726918256106,-151.0,0.00014508,2]
[338803624,1726918256117,-151.0,0.00014508,2]
[338803625,1726918256126,-151.0,0.00014508,2]
[338803626,1726918256135,-864.157237,0.00014508,2]
[338803627,1726918256144,-864.157237,0.00014508,2]
[338803628,1726918256154,-551.887415,0.00014508,2]
[338803629,1726918256163,-151.0,0.00014508,2]
[338803630,1726918256172,-551.887415,0.00014508,2]
[338803631,1726918256182,-709.598244,0.00014508,2]
[338803632,1726918256192,-709.598244,0.00014508,2]
[338803633,1726918256201,-150.112233,0.000146,2]
[338803634,1726918256211,-153.0,0.000146,2]
[338803635,1726918256221,-411.7313822,0.000146,2]
[338803636,1726918256230,-155.184983,0.00014615,2]
[338803637,1726918256239,-151.0,0.00014615,2]
[338803638,1726918256248,-171.775202,0.00014615,2]
[338803639,1726918256258,-151.0,0.00014615,2]
[338803640,1726918256271,-171.775202,0.00014615,2]
[338803641,1726918256280,-222.307801,0.00014615,2]
[338803642,1726918256289,-222.307801,0.00014615,2]
[338803643,1726918256299,-460.390961,0.00014615,2]
[338803644,1726918256309,-460.390961,0.00014615,2]
[338803645,1726918256319,-151.0,0.00014615,2]
[338803646,1726918256328,-290.759712,0.00014615,2]
[338803647,1726918256338,-290.759712,0.00014615,2]
[338803648,1726918256347,-151.0,0.00014615,2]
[338803649,1726918256357,-1205.237489,0.00014615,2]
[338803650,1726918256366,-1205.237489,0.00014615,2]
[338803651,1726918256376,-206.103415,0.00014615,2]
[338803652,1726918256385,-206.103415,0.00014615,2]
[338803653,1726918256395,-156.228924,0.00014615,2]
[338803654,1726918256404,-156.228924,0.00014615,2]
[338803655,1726918256413,-151.0,0.0001469,2]
[338803656,1726918256423,-151.0,0.0001469,2]
[338803657,1726918256433,-593.04663,0.0001469,2]
[338803658,1726918256442,-22053.805846,0.000147,2]
[338803659,1726918256452,-150.112233,0.000147,2]
[338803660,1726918256462,-151.0,0.000147,2]
[338803661,1726918256473,-151.0,0.000147,2]
[338803662,1726918256484,-1321.937619,0.000147,2]
[338803663,1726918256495,-382.229335,0.000147,2]
[338803664,1726918256506,-1321.937619,0.000147,2]
[338803665,1726918256517,-382.229335,0.000147,2]
[338803666,1726918256527,-151.0,0.000147,2]
[338803667,1726918256537,-151.0,0.000147,2]
[338803668,1726918256547,-1434.551731,0.000147,2]
[338803669,1726918256557,-1434.551731,0.000147,2]
[338803670,1726918256569,-682.430506,0.000147,2]
[338803671,1726918256579,-682.430506,0.000147,2]
[338803672,1726918256588,-151.0,0.000147,2]
[338803673,1726918256597,-1089.33265,0.000147,2]
[338803674,1726918256608,-1089.33265,0.000147,2]
[338803675,1726918256617,-572.045424,0.000147,2]
[338803676,1726918256627,-572.045424,0.000147,2]
[338803677,1726918256637,-1133.784028,0.000147,2]
[338803678,1726918256648,-1133.784028,0.000147,2]
[338803679,1726918256657,-466.778628,0.000147,2]
[338803680,1726918256666,-466.778628,0.000147,2]
[338803681,1726918256675,-170.721303,0.000147,2]
[338803682,1726918256685,-170.721303,0.000147,2]
[338803683,1726918256695,-240.824362,0.000147,2]
[338803684,1726918256705,-431.021768,0.000147,2]
[338803685,1726918256715,-240.824362,0.000147,2]
[338803686,1726918256724,-302.309017,0.000147,2]
[338803687,1726918256735,-431.021768,0.000147,2]
[338803688,1726918256744,-177.337776,0.000147,2]
[338803689,1726918256754,-302.309017,0.000147,2]
[338803690,1726918256765,-177.337776,0.000147,2]
[338803691,1726918256774,-779.452886,0.000147,2]
[338803692,1726918256783,-779.452886,0.000147,2]
[338803693,1726918256793,-151.0,0.000147,2]
[338803694,1726918256804,-2106.455996,0.000147,2]
[338803695,1726918256813,-2106.455996,0.000147,2]
[338803696,1726918256827,-251.524866,0.000147,2]
[338803697,1726918256836,-251.524866,0.000147,2]
[338803698,1726918256846,-151.0,0.000147,2]
[338803699,1726918256857,-623.323343,0.000147,2]
[338803700,1726918256866,-623.323343,0.000147,2]
[338803701,1726918256875,-151.0,0.000147,2]
[338803702,1726918256885,-208.8377925,0.00014723,2]
[338803703,1726918256895,-500.0,0.00014746,2]
[338803704,1726918256905,-151.0,0.00014747,2]
[338803705,1726918256914,-151.0,0.00014747,2]
[338803706,1726918256924,-175.9905,0.00014747,2]
[338803707,1726918256935,-175.9905,0.00014747,2]
[338803708,1726918256945,-1449.9401408,0.0001475,2]
[338803709,1726918256955,-500.0,0.0001475,2]
[338803710,1726918256964,-592.34,0.0001475,2]
[338803711,1726918256973,-500.0,0.0001475,2]
[338803712,1726918256982,-500.0,0.0001475,2]
[338803713,1726918256992,-16264.97,0.0001475,2]
[338803714,1726918257001,-2374.78,0.0001475,2]
[338803715,1726918257013,-229.81,0.0001475,2]
[338803716,1726918257023,-500.0,0.00014758,2]
[338803717,1726918257032,-624.04,0.00014758,2]
[338803718,1726918257042,-500.0,0.00014759,2]
[338803719,1726918257052,-500.0,0.00014759,2]
[338803720,1726918257062,-500.0,0.00014759,2]
[338803721,1726918257072,-500.0,0.00014759,2]
[338803722,1726918257081,-500.0,0.00014759,2]
[338803723,1726918257091,-580.99,0.00014759,2]
[338803724,1726918257100,-500.0,0.00014759,2]
[338803725,1726918257110,-500.0,0.00014759,2]
[338803726,1726918257120,-500.0,0.00014759,2]
[338803727,1726918257131,-511.54,0.00014759,2]
[338803728,1726918257142,-500.0,0.00014759,2]
[338803729,1726918257151,-500.0,0.00014759,2]
[338803730,1726918257161,-500.0,0.00014759,2]
[338803731,1726918257172,-333.49,0.00014759,2]
[338803732,1726918257182,-858.64,0.00014759,2]
[338803733,1726918257191,-847.71,0.00014759,2]
[338803734,1726918257200,-159.83,0.00014759,2]
[338803735,1726918257210,-500.0,0.00014759,2]
[338803736,1726918257219,-500.0,0.00014759,2]
[338803737,1726918257229,-541.98605961,0.00014759,2]
[338803738,1726918257240,-170.81220532,0.00014759,2]
[338803739,1726918257250,-500.0,0.00014759,2]
[338803740,1726918257261,-283.26,0.00014759,2]
[338803741,1726918257271,-500.0,0.00014759,2]
[338803742,1726918257280,-500.0,0.00014759,2]
[338803743,1726918257289,-500.0,0.00014759,2]
[338803744,1726918257298,-500.0,0.00014759,2]
[338803745,1726918257307,-357.31,0.00014759,2]
[338803746,1726918257317,-419.17,0.00014759,2]
[338803747,1726918257327,-500.0,0.00014759,2]
[338803748,1726918257336,-500.0,0.00014759,2]
[338803749,1726918257345,-500.0,0.00014759,2]
[338803750,1726918257354,-500.0,0.00014759,2]
[338803751,1726918257364,-500.0,0.00014759,2]
[338803752,1726918257373,-500.0,0.00014759,2]
[338803753,1726918257383,-500.0,0.00014759,2]
[338803754,1726918257393,-500.0,0.00014759,2]
[338803755,1726918257403,-156.88,0.00014759,2]
[338803756,1726918257413,-500.0,0.00014759,2]
[338803757,1726918257422,-500.0,0.00014759,2]
[338803758,1726918257432,-500.0,0.00014759,2]
[338803759,1726918257441,-500.0,0.00014759,2]
[338803760,1726918257451,-433.91604447,0.00014759,2]
[338803761,1726918257460,-500.0,0.00014759,2]
[338803762,1726918257469,-1581.55,0.00014759,2]
[338803763,1726918257479,-500.0,0.00014759,2]
[338803764,1726918257490,-500.0,0.00014759,2]
[338803765,1726918257501,-272.48,0.00014759,2]
[338803766,1726918257511,-503.49640665,0.00014759,2]
[338803767,1726918257653,-500.0,0.00014759,2]
[338803768,1726918257663,-500.0,0.00014759,2]
[338803769,1726918257672,-500.0,0.00014759,2]
[338803770,1726918257682,-500.0,0.00014759,2]
[338803771,1726918257691,-536.08,0.00014759,2]
[338803772,1726918257701,-500.0,0.00014759,2]
[338803773,1726918257710,-500.0,0.00014759,2]
[338803774,1726918257719,-500.0,0.00014759,2]
[338803775,1726918257729,-500.0,0.00014759,2]
[338803776,1726918257739,-500.0,0.00014759,2]
[338803777,1726918257749,-500.0,0.00014759,2]
[338803778,1726918257759,-500.0,0.00014759,2]
[338803779,1726918257770,-500.0,0.00014759,2]
[338803780,1726918257780,-500.0,0.00014759,2]
[338803781,1726918257789,-500.0,0.00014759,2]
[338803782,1726918257799,-500.0,0.00014759,2]
[338803783,1726918257808,-500.0,0.00014759,2]
[338803784,1726918257818,-500.0,0.00014759,2]
[338803785,1726918257827,-500.0,0.00014759,2]
[338803786,1726918257836,-500.0,0.00014759,2]
[338803787,1726918257846,-500.0,0.00014759,2]
[338803788,1726918257856,-500.0,0.00014759,2]
[338803789,1726918257866,-500.0,0.00014759,2]
[338803790,1726918257875,-500.0,0.00014759,2]
[338803791,1726918257885,-500.0,0.00014759,2]
[338803792,1726918257895,-500.0,0.00014759,2]
[338803793,1726918257904,-500.0,0.00014759,2]
[338803794,1726918257914,-500.0,0.00014759,2]
[338803795,1726918257924,-500.0,0.00014759,2]
[338803796,1726918257933,-503.19793859,0.00014759,2]
[338803797,1726918257943,-628.02,0.00014759,2]
[338803798,1726918257952,-740.8,0.00014759,2]
[338803799,1726918257962,-529.96,0.00014759,2]
[338803800,1726918257973,-500.0,0.00014759,2]
[338803801,1726918257982,-500.0,0.00014759,2]
[338803802,1726918257993,-500.0,0.00014759,2]
[338803803,1726918258002,-500.0,0.00014759,2]
[338803804,1726918258014,-500.0,0.00014759,2]
[338803805,1726918258024,-500.0,0.00014759,2]
[338803806,1726918258034,-500.0,0.00014759,2]
[338803807,1726918258044,-500.0,0.00014759,2]
[338803808,1726918258053,-514.93,0.00014759,2]
[338803809,1726918258062,-596.05,0.0001477,2]
[338803810,1726918258072,-500.0,0.0001477,2]
[338803811,1726918258081,-500.0,0.0001477,2]
[338803812,1726918258090,-500.0,0.0001477,2]
[338803813,1726918258100,-500.0,0.0001477,2]
[338803814,1726918258108,-889.47,0.0001477,2]
[338803815,1726918258118,-500.0,0.0001477,2]
[338803816,1726918258127,-500.0,0.0001477,2]
[338803817,1726918258136,-500.0,0.0001477,2]
[338803818,1726918258146,-500.0,0.0001477,2]
[338803819,1726918258155,-500.0,0.0001477,2]
[338803820,1726918258165,-382.7023557,0.0001477,2]
[338803821,1726918258174,-500.0,0.0001477,2]
[338803822,1726918258184,-500.0,0.0001477,2]
[338803823,1726918258193,-500.0,0.0001477,2]
[338803824,1726918258202,-500.0,0.0001477,2]
[338803825,1726918258212,-500.0,0.0001477,2]
[338803826,1726918258221,-500.0,0.0001477,2]
[338803827,1726918258230,-346.03,0.0001477,2]
[338803828,1726918258239,-500.0,0.0001477,2]
[338803829,1726918258249,-500.0,0.0001477,2]
[338803830,1726918258258,-500.0,0.0001477,2]
[338803831,1726918258270,-500.0,0.0001477,2]
[338803832,1726918258280,-500.0,0.0001477,2]
[338803833,1726918258289,-151.0,0.0001477,2]
[338803834,1726918258298,-500.0,0.0001477,2]
[338803835,1726918258307,-500.0,0.0001477,2]
[338803836,1726918258316,-500.0,0.0001477,2]
[338803837,1726918258325,-151.0,0.0001477,2]
[338803838,1726918258334,-500.0,0.0001477,2]
[338803839,1726918258343,-151.0,0.0001477,2]
[338803840,1726918258353,-151.0,0.0001477,2]
[338803841,1726918258362,-500.0,0.0001477,2]
[338803842,1726918258371,-181.05,0.0001477,2]
[338803843,1726918258380,-500.0,0.0001477,2]
[338803844,1726918258389,-501.26830144,0.0001477,2]
[338803845,1726918258399,-500.0,0.0001477,2]
[338803846,1726918258408,-500.0,0.0001477,2]
[338803847,1726918258418,-500.0,0.0001477,2]
[338803848,1726918258427,-500.0,0.0001477,2]
[338803849,1726918258436,-501.9642815,0.0001477,2]
[338803850,1726918258446,-500.0,0.0001477,2]
[338803851,1726918258455,-151.0,0.0001477,2]
[338803852,1726918258465,-535.53,0.0001477,2]
[338803853,1726918258474,-500.0,0.0001477,2]
[338803854,1726918258483,-252.36,0.0001477,2]
[338803855,1726918258492,-500.0,0.0001477,2]
[338803856,1726918258502,-152.68,0.0001477,2]
[338803857,1726918258511,-500.0,0.0001477,2]
[338803858,1726918258523,-864.157237,0.0001477,2]
[338803859,1726918258532,-864.157237,0.0001477,2]
[338803860,1726918258542,-500.0,0.0001477,2]
[338803861,1726918258552,-500.0,0.0001477,2]
[338803862,1726918258564,-214.39538452,0.0001477,2]
[338803863,1726918258574,-555.74,0.0001477,2]
[338803864,1726918258583,-502.02661187,0.0001477,2]
[338803865,1726918258593,-502.17291146,0.0001477,2]
[338803866,1726918258603,-500.0,0.0001477,2]
[338803867,1726918258612,-551.887415,0.0001477,2]
[338803868,1726918258622,-151.0,0.0001477,2]
[338803869,1726918258632,-551.887415,0.0001477,2]
[338803870,1726918258642,-500.0,0.0001477,2]
[338803871,1726918258651,-500.0,0.0001477,2]
[338803872,1726918258661,-709.598244,0.0001477,2]
[338803873,1726918258670,-709.598244,0.0001477,2]
[338803874,1726918258679,-500.0,0.0001477,2]
[338803875,1726918258689,-500.0,0.0001477,2]
[338803876,1726918258698,-511.44484,0.0001477,2]
[338803877,1726918258707,-500.0,0.0001477,2]
[338803878,1726918258716,-500.0,0.0001477,2]
[338803879,1726918258725,-500.0,0.0001477,2]
[338803880,1726918258734,-500.0,0.0001477,2]
[338803881,1726918258743,-447.65138317,0.0001477,2]
[338803882,1726918258753,-500.0,0.0001477,2]
[338803883,1726918258762,-500.0,0.0001477,2]
[338803884,1726918258774,-500.0,0.0001477,2]
[338803885,1726918258783,-500.0,0.0001477,2]
[338803886,1726918258793,-502.62406265,0.0001477,2]
[338803887,1726918258802,-500.0,0.0001477,2]
[338803888,1726918258811,-500.0,0.0001477,2]
[338803889,1726918258820,-500.0,0.0001477,2]
[338803890,1726918258830,-500.0,0.0001477,2]
[338803891,1726918258839,-500.0,0.0001477,2]
[338803892,1726918258848,-500.0,0.0001477,2]
[338803893,1726918258858,-500.0,0.0001477,2]
[338803894,1726918258867,-500.0,0.0001477,2]
[338803895,1726918258877,-500.0,0.0001477,2]
[338803896,1726918258886,-929.89,0.0001477,2]
[338803897,1726918258896,-500.0,0.0001477,2]
[338803898,1726918258905,-500.0,0.0001477,2]
[338803899,1726918258915,-500.0,0.0001477,2]
[338803900,1726918258924,-247.28098613,0.0001477,2]
[338803901,1726918258933,-500.0,0.0001477,2]
[338803902,1726918258942,-500.0,0.0001477,2]
[338803903,1726918258952,-500.0,0.0001477,2]
[338803904,1726918258962,-500.0,0.0001477,2]
[338803905,1726918258972,-500.0,0.0001477,2]
[338803906,1726918258982,-616.82,0.0001477,2]
[338803907,1726918258993,-528.96,0.0001477,2]
[338803908,1726918259003,-500.0,0.0001477,2]
[338803909,1726918259013,-652.92,0.0001477,2]
[338803910,1726918259023,-500.0,0.0001477,2]
[338803911,1726918259034,-500.0,0.0001477,2]
[338803912,1726918259044,-500.0,0.0001477,2]
[338803913,1726918259054,-500.0,0.0001477,2]
[338803914,1726918259063,-685.29,0.0001477,2]
[338803915,1726918259073,-500.0,0.0001477,2]
[338803916,1726918259083,-500.0,0.0001477,2]
[338803917,1726918259093,-500.0,0.0001477,2]
[338803918,1726918259102,-500.0,0.0001477,2]
[338803919,1726918259112,-500.0,0.0001477,2]
[338803920,1726918259124,-500.0,0.0001477,2]
[338803921,1726918259134,-500.0,0.0001477,2]
[338803922,1726918259144,-500.0,0.0001477,2]
[338803923,1726918259153,-500.0,0.0001477,2]
[338803924,1726918259162,-500.0,0.0001477,2]
[338803925,1726918259172,-500.0,0.0001477,2]
[338803926,1726918259182,-500.0,0.0001477,2]
[338803927,1726918259191,-151.0,0.0001477,2]
[338803928,1726918259200,-500.0,0.0001477,2]
[338803929,1726918259209,-500.0,0.0001477,2]
[338803930,1726918259219,-500.0,0.0001477,2]
[338803931,1726918259228,-500.0,0.0001477,2]
[338803932,1726918259237,-500.0,0.0001477,2]
[338803933,1726918259246,-500.0,0.0001477,2]
[338803934,1726918259256,-500.0,0.0001477,2]
[338803935,1726918259266,-500.0,0.0001477,2]
[338803936,1726918259276,-1394.91,0.0001477,2]
[338803937,1726918259285,-1205.237489,0.0001477,2]
[338803938,1726918259295,-500.0,0.0001477,2]
[338803939,1726918259304,-1205.237489,0.0001477,2]
[338803940,1726918259313,-206.103415,0.0001477,2]
[338803941,1726918259323,-206.103415,0.0001477,2]
[338803942,1726918259332,-500.0,0.0001477,2]
[338803943,1726918259341,-500.0,0.0001477,2]
[338803944,1726918259351,-570.46,0.0001477,2]
[338803945,1726918259360,-500.0,0.0001477,2]
[338803946,1726918259370,-500.0,0.0001477,2]
[338803947,1726918259379,-500.0,0.0001477,2]
[338803948,1726918259388,-500.0,0.0001477,2]
[338803949,1726918259397,-501.01725033,0.0001477,2]
[338803950,1726918259407,-514.69753061,0.0001477,2]
[338803951,1726918259416,-501.99008311,0.0001477,2]
[338803952,1726918259426,-500.0,0.0001477,2]
[338803953,1726918259435,-500.0,0.0001477,2]
[338803954,1726918259444,-599.23616822,0.0001477,2]
[338803955,1726918259454,-500.0,0.0001477,2]
[338803956,1726918259463,-500.0,0.0001477,2]
[338803957,1726918259472,-500.0,0.0001477,2]
[338803958,1726918259482,-156.228924,0.0001477,2]
[338803959,1726918259492,-156.228924,0.0001477,2]
[338803960,1726918259501,-500.0,0.0001477,2]
[338803961,1726918259511,-500.0,0.0001477,2]
[338803962,1726918259523,-500.0,0.0001477,2]
[338803963,1726918259533,-151.0,0.0001477,2]
[338803964,1726918259542,-507.49,0.0001477,2]
[338803965,1726918259552,-623.323343,0.0001477,2]
[338803966,1726918259564,-252.62,0.0001477,2]
[338803967,1726918259574,-623.323343,0.0001477,2]
[338803968,1726918259584,-500.0,0.0001477,2]
[338803969,1726918259594,-151.0,0.0001477,2]
[338803970,1726918259604,-585.17,0.0001477,2]
[338803971,1726918259614,-151.0,0.0001477,2]
[338803972,1726918259623,-240.93,0.0001477,2]
[338803973,1726918259632,-593.04663,0.0001477,2]
[338803974,1726918259644,-500.0,0.00014771,2]
[338803975,1726918259654,-200.0,0.00014771,2]
[338803976,1726918259664,-500.0,0.00014771,2]
[338803977,1726918259673,-466.778628,0.00014771,2]
[338803978,1726918259683,-466.778628,0.00014771,2]
[338803979,1726918259692,-170.721303,0.00014771,2]
[338803980,1726918259701,-170.721303,0.00014771,2]
[338803981,1726918259711,-240.824362,0.00014771,2]
[338803982,1726918259721,-240.824362,0.00014771,2]
[338803983,1726918259731,-302.309017,0.00014771,2]
[338803984,1726918259740,-177.337776,0.00014771,2]
[338803985,1726918259750,-302.309017,0.00014771,2]
[338803986,1726918259759,-177.337776,0.00014771,2]
[338803987,1726918259769,-779.452886,0.00014771,2]
[338803988,1726918259778,-779.452886,0.00014771,2]
[338803989,1726918259788,-164.880755,0.00014771,2]
[338803990,1726918259797,-251.524866,0.00014771,2]
[338803991,1726918259807,-251.524866,0.00014771,2]
[338803992,1726918259816,-151.0,0.00014771,2]
[338803993,1726918259825,-600.0,0.00014773,2]
[338803994,1726918259836,-500.67772064,0.00014773,2]
[338803995,1726918259845,-176.2442662,0.00014773,2]
[338803996,1726918259854,-500.58397951,0.00014773,2]
[338803997,1726918259866,-500.0,0.00014773,2]
[338803998,1726918259875,-251.909922,0.00014773,2]
[338803999,1726918259884,-201.52625519,0.00014773,2]
[338804000,1726918259893,-500.0,0.00014773,2]
[338804001,1726918259903,-500.0,0.00014773,2]
[338804002,1726918259912,-500.0,0.00014773,2]
[338804003,1726918259922,-500.0,0.00014773,2]
[338804004,1726918259931,-500.0,0.00014773,2]
[338804005,1726918259941,-500.0,0.00014773,2]
[338804006,1726918259950,-370.61544553,0.00014773,2]
[338804007,1726918259959,-500.0,0.00014773,2]
[338804008,1726918259969,-500.0,0.00014773,2]
[338804009,1726918259978,-500.0,0.00014773,2]
[338804010,1726918259988,-500.0,0.00014773,2]
[338804011,1726918259998,-151.0,0.00014781,2]
[338804012,1726918260007,-171.775202,0.00014781,2]
[338804013,1726918260018,-151.0,0.00014781,2]
[338804014,1726918260028,-171.775202,0.00014781,2]
[338804015,1726918260037,-222.307801,0.00014781,2]
[338804016,1726918260047,-222.307801,0.00014781,2]
[338804017,1726918260056,-460.390961,0.00014781,2]
[338804018,1726918260066,-460.390961,0.00014781,2]
[338804019,1726918260076,-500.0,0.00014782,2]
[338804020,1726918260086,-151.0,0.00014782,2]
[338804021,1726918260095,-233.040417,0.00014782,2]
[338804022,1726918260105,-234.050692,0.00014782,2]
[338804023,1726918260114,-151.0,0.00014782,2]
[338804024,1726918260124,-290.759712,0.00014782,2]
[338804025,1726918260134,-290.759712,0.00014782,2]
[338804026,1726918260143,-1321.937619,0.00014782,2]
[338804027,1726918260152,-382.229335,0.00014782,2]
[338804028,1726918260162,-1321.937619,0.00014782,2]
[338804029,1726918260171,-382.229335,0.00014782,2]
[338804030,1726918260182,-151.0,0.00014782,2]
[338804031,1726918260193,-1434.551731,0.00014782,2]
[338804032,1726918260203,-1434.551731,0.00014782,2]
[338804033,1726918260215,-682.430506,0.00014782,2]
[338804034,1726918260225,-682.430506,0.00014782,2]
[338804035,1726918260235,-151.0,0.00014782,2]
[338804036,1726918260247,-1089.33265,0.00014782,2]
[338804037,1726918260257,-1089.33265,0.00014782,2]
[338804038,1726918260268,-572.045424,0.00014782,2]
[338804039,1726918260277,-572.045424,0.00014782,2]
[338804040,1726918260287,-1133.784028,0.00014782,2]
[338804041,1726918260296,-1133.784028,0.00014782,2]
[338804042,1726918260305,-431.021768,0.00014782,2]
[338804043,1726918260315,-431.021768,0.00014782,2]
[338804044,1726918260325,-2106.455996,0.00014782,2]
[338804045,1726918260335,-2106.455996,0.00014782,2]
[338804046,1726918260344,-1000.0,0.00014788,2]
[338804047,1726918260354,-257.47610952,0.00014793,2]
[338804048,1726918260363,-8185.0441325,0.00014793,2]
[338804049,1726918260373,-151.0,0.00014793,2]
[338804050,1726918260382,-151.0,0.00014793,2]
[338804051,1726918260394,-234.509386,0.00014793,2]
[338804052,1726918260406,-151.0,0.00014793,2]
[338804053,1726918260417,-151.0,0.00014793,2]
[338804054,1726918260427,-864.157237,0.00014793,2]
[338804055,1726918260436,-864.157237,0.00014793,2]
[338804056,1726918260445,-551.887415,0.00014793,2]
[338804057,1726918260455,-151.0,0.00014793,2]
[338804058,1726918260464,-551.887415,0.00014793,2]
[338804059,1726918260474,-709.598244,0.00014793,2]
[338804060,1726918260485,-709.598244,0.00014793,2]
[338804061,1726918260497,-150.0,0.00014795,2]
[338804062,1726918260507,-1191.05,0.000148,2]
[338804063,1726918260518,-150.112233,0.000148,2]
[338804064,1726918260529,-1000.0,0.0001481,2]
[338804065,1726918260538,-722.457,0.00014813,2]
[338804066,1726918260547,-1000.0,0.00014836,2]
[338804067,1726918260556,-1000.0,0.0001485,2]
[338804068,1726918260569,-150.112233,0.000149,2]
[338804069,1726918260578,-150.0,0.00014979,2]
[338804070,1726918260588,-524.0,0.00014979,2]
[338804071,1726918260596,-1216.0,0.00014979,2]
[338804072,1726918260606,-478.79470768,0.00014988,2]
[338804073,1726918260617,-2007.24,0.00015,2]
[338804074,1726918260626,-150.112233,0.00015,2]
[338804075,1726918260638,-150.112235,0.00015,2]
[338804076,1726918260648,-5000.0,0.00015,2]
[338804077,1726918260658,-218.761464,0.00015,2]
[338804078,1726918260667,-151.0,0.00015,2]
[338804079,1726918260677,-500.0,0.00015024,2]
[338804080,1726918260687,-592.34,0.00015024,2]
[338804081,1726918260696,-500.0,0.00015024,2]
[338804082,1726918260707,-16264.97,0.00015024,2]
[338804083,1726918260716,-2374.78,0.00015024,2]
[338804084,1726918260849,-500.0,0.00015031,2]
[338804085,1726918260861,-500.0,0.00015032,2]
[338804086,1726918260870,-151.0,0.00015032,2]
[338804087,1726918260880,-1205.237489,0.00015032,2]
[338804088,1726918260890,-1205.237485,0.00015032,2]
[338804089,1726918260901,-206.103415,0.00015032,2]
[338804090,1726918260913,-206.103422,0.00015032,2]
[338804091,1726918260923,-624.04,0.00015032,2]
[338804092,1726918260933,-156.228924,0.00015032,2]
[338804093,1726918260943,-156.228924,0.00015032,2]
[338804094,1726918260953,-388.67,0.00015033,2]
[338804095,1726918260962,-500.0,0.00015033,2]
[338804096,1726918260971,-500.0,0.00015033,2]
[338804097,1726918260980,-500.0,0.00015033,2]
[338804098,1726918260990,-427.81,0.00015033,2]
[338804099,1726918261000,-500.0,0.00015033,2]
[338804100,1726918261009,-240.6238477,0.00015033,2]
[338804101,1726918261019,-500.0,0.00015033,2]
[338804102,1726918261029,-858.64,0.00015033,2]
[338804103,1726918261037,-847.71,0.00015033,2]
[338804104,1726918261048,-245.79,0.00015033,2]
[338804105,1726918261058,-500.0,0.00015033,2]
[338804106,1726918261068,-500.0,0.00015033,2]
[338804107,1726918261077,-505.26834954,0.00015033,2]
[338804108,1726918261086,-500.0,0.00015033,2]
[338804109,1726918261095,-500.0,0.00015033,2]
[338804110,1726918261105,-500.0,0.00015033,2]
[338804111,1726918261115,-500.0,0.00015033,2]